[Event "I.A Hrvatska šahovska liga"]
[Site "Veli Lošinj, Croatia"]
[Date "2024.10.05"]
[Round "1.29"]
[White "Plenkovic, Zdenko"]
[Black "Plenca, Julijan"]
[Result "1-0"]
[TimeControl "90 30 40 30"]
[WhiteFideId "14506947"]
[BlackFideId "14508044"]
[WhiteElo "2357"]
[BlackElo "2440"]

1. e4 {[%clk 01:30:12]} {[%emt 00:00:48]} c5 {[%clk 01:30:43]} {[%emt
00:00:18]} 2. Nf3 {[%clk 01:30:36]} {[%emt 00:00:05]} d6 {[%clk 01:30:48]}
{[%emt 00:00:25]} 3. d4 {[%clk 01:31:00]} {[%emt 00:00:06]} cxd4 {[%clk
01:31:07]} {[%emt 00:00:11]} 4. Nxd4 {[%clk 01:31:23]} {[%emt 00:00:07]} Nf6
{[%clk 01:31:25]} {[%emt 00:00:12]} 5. Nc3 {[%clk 01:31:47]} {[%emt 00:00:06]}
Bd7 {[%clk 01:31:28]} {[%emt 00:00:27]} 6. h3 {[%clk 01:21:29]} {[%emt
00:10:48]} Nc6 {[%clk 01:28:40]} {[%emt 00:03:18]} 7. g4 {[%clk 01:18:18]}
{[%emt 00:03:41]} Nxd4 {[%clk 01:14:49]} {[%emt 00:14:21]} 8. Qxd4 {[%clk
01:17:48]} {[%emt 00:01:00]} e5 {[%clk 01:14:56]} {[%emt 00:00:22]} 9. Qd3
{[%clk 01:15:38]} {[%emt 00:02:40]} Bc6 {[%clk 01:14:06]} {[%emt 00:01:21]} 10.
g5 {[%clk 01:13:53]} {[%emt 00:02:15]} Nd7 {[%clk 01:13:17]} {[%emt 00:01:19]}
11. Qf3 {[%clk 01:09:26]} {[%emt 00:04:57]} Nc5 {[%clk 01:00:01]} {[%emt
00:13:46]} 12. Bc4 {[%clk 01:06:42]} {[%emt 00:03:14]} Ne6 {[%clk 00:58:41]}
{[%emt 00:01:50]} 13. Be3 {[%clk 01:06:03]} {[%emt 00:01:09]} Be7 {[%clk
00:57:02]} {[%emt 00:02:09]} 14. h4 {[%clk 01:06:14]} {[%emt 00:00:18]} b5
{[%clk 00:52:34]} {[%emt 00:05:00]} 15. Bb3 {[%clk 00:59:23]} {[%emt 00:07:21]}
a5 {[%clk 00:47:46]} {[%emt 00:05:18]} 16. a3 {[%clk 00:47:00]} {[%emt
00:12:52]} Rb8 {[%clk 00:45:13]} {[%emt 00:03:02]} 17. Nd5 {[%clk 00:45:46]}
{[%emt 00:01:44]} Qd7 {[%clk 00:42:07]} {[%emt 00:03:37]} 18. Rg1 {[%clk
00:44:11]} {[%emt 00:02:05]} Bd8 {[%clk 00:38:33]} {[%emt 00:04:04]} 19. h5
{[%clk 00:39:25]} {[%emt 00:05:16]} g6 {[%clk 00:38:05]} {[%emt 00:00:58]} 20.
Nf6+ {[%clk 00:30:34]} {[%emt 00:09:21]} Bxf6 {[%clk 00:38:20]} {[%emt
00:00:15]} 21. Qxf6 {[%clk 00:30:48]} {[%emt 00:00:17]} Rg8 {[%clk 00:37:42]}
{[%emt 00:01:07]} 22. hxg6 {[%clk 00:27:16]} {[%emt 00:04:02]} hxg6 {[%clk
00:37:42]} {[%emt 00:00:29]} 23. f3 {[%clk 00:17:40]} {[%emt 00:10:06]} Qe7
{[%clk 00:33:50]} {[%emt 00:04:23]} 24. O-O-O {[%clk 00:16:50]} {[%emt
00:01:20]} a4 {[%clk 00:27:17]} {[%emt 00:07:03]} 25. Ba2 {[%clk 00:13:21]}
{[%emt 00:04:00]} b4 {[%clk 00:26:15]} {[%emt 00:01:32]} 26. axb4 {[%clk
00:13:46]} {[%emt 00:00:05]} Rxb4 {[%clk 00:26:36]} {[%emt 00:00:09]} 27. Rh1
{[%clk 00:10:41]} {[%emt 00:03:34]} Bd7 {[%clk 00:23:27]} {[%emt 00:03:40]} 28.
Rh7 {[%clk 00:07:15]} {[%emt 00:03:55]} Rf8 {[%clk 00:23:21]} {[%emt 00:00:37]}
29. Rh2 {[%clk 00:07:38]} {[%emt 00:00:06]} Nd4 {[%clk 00:21:52]} {[%emt
00:01:59]} 30. Rhd2 {[%clk 00:04:28]} {[%emt 00:03:40]} Be6 {[%clk 00:19:46]}
{[%emt 00:02:36]} 31. Bxd4 {[%clk 00:03:51]} {[%emt 00:01:07]} exd4 {[%clk
00:18:11]} {[%emt 00:02:05]} 32. Rxd4 {[%clk 00:02:54]} {[%emt 00:01:27]} Qxf6
{[%clk 00:18:03]} {[%emt 00:00:38]} 33. gxf6 {[%clk 00:03:19]} {[%emt
00:00:05]} Rxd4 {[%clk 00:18:08]} {[%emt 00:00:25]} 34. Rxd4 {[%clk 00:03:34]}
{[%emt 00:00:16]} Bxa2 {[%clk 00:17:15]} {[%emt 00:01:22]} 35. Rxa4 {[%clk
00:03:32]} {[%emt 00:00:33]} Kd7 {[%clk 00:17:39]} {[%emt 00:00:05]} 36. Rxa2
{[%clk 00:03:56]} {[%emt 00:00:06]} Ke6 {[%clk 00:18:05]} {[%emt 00:00:04]} 37.
Kd2 {[%clk 00:02:21]} {[%emt 00:02:04]} Kxf6 {[%clk 00:18:22]} {[%emt
00:00:14]} 38. Ra6 {[%clk 00:02:22]} {[%emt 00:00:29]} Ke6 {[%clk 00:18:20]}
{[%emt 00:00:31]} 39. f4 {[%clk 00:02:00]} {[%emt 00:00:53]} f6 {[%clk
00:18:44]} {[%emt 00:00:06]} 40. Ra5 {[%clk 00:32:03]} {[%emt 00:00:26]} f5
{[%clk 00:48:20]} {[%emt 00:00:55]} 41. e5 {[%clk 00:26:30]} {[%emt 00:06:03]}
g5 {[%clk 00:48:24]} {[%emt 00:00:26]} 42. exd6 {[%clk 00:25:04]} {[%emt
00:01:55]} g4 {[%clk 00:48:42]} {[%emt 00:00:13]} 43. Re5+ {[%clk 00:23:22]}
{[%emt 00:02:12]} Kxd6 {[%clk 00:49:05]} {[%emt 00:00:07]} 44. b4 {[%clk
00:18:41]} {[%emt 00:05:12]} Rg8 {[%clk 00:48:58]} {[%emt 00:00:36]} 45. Re2
{[%clk 00:16:49]} {[%emt 00:02:21]} Rh8 {[%clk 00:48:14]} {[%emt 00:01:14]} 46.
c4 {[%clk 00:14:48]} {[%emt 00:02:31]} Rh1 {[%clk 00:45:36]} {[%emt 00:03:08]}
47. Kc3 {[%clk 00:09:52]} {[%emt 00:05:26]} Rf1 {[%clk 00:45:14]} {[%emt
00:00:52]} 48. c5+ {[%clk 00:09:58]} {[%emt 00:00:25]} Kd7 {[%clk 00:45:24]}
{[%emt 00:00:20]} 49. b5 {[%clk 00:09:11]} {[%emt 00:01:17]} g3 {[%clk
00:40:49]} {[%emt 00:05:05]} 50. Kd4 {[%emt 00:06:29]} Rf2 {[%clk 00:39:41]}
{[%emt 00:01:36]} 51. Ke3 {[%clk 00:03:33]} {[%emt 00:00:10]} Rf1 {[%clk
00:39:53]} {[%emt 00:00:19]} 52. Rg2 {[%clk 00:02:58]} {[%emt 00:01:04]} Rb1
{[%clk 00:40:09]} {[%emt 00:00:14]} 53. Kd4 {[%clk 00:02:52]} {[%emt 00:00:37]}
Rb3 {[%clk 00:39:05]} {[%emt 00:01:34]} 54. Kc4 {[%clk 00:02:08]} {[%emt
00:01:13]} Rf3 {[%clk 00:39:10]} {[%emt 00:00:26]} 55. Kd5 {[%clk 00:02:33]}
{[%emt 00:00:05]} Kc7 {[%clk 00:37:57]} {[%emt 00:01:44]} 56. b6+ {[%clk
00:01:37]} {[%emt 00:01:26]} Kb7 {[%clk 00:38:21]} {[%emt 00:00:05]} 57. Ke5
{[%clk 00:01:34]} {[%emt 00:00:33]} Kc6 {[%clk 00:38:06]} {[%emt 00:00:44]} 58.
Kxf5 {[%clk 00:01:28]} {[%emt 00:00:37]} Rb3 {[%clk 00:37:48]} {[%emt
00:00:48]} 59. Rc2 {[%clk 00:00:48]} {[%emt 00:01:10]} g2 {[%clk 00:37:59]}
{[%emt 00:00:19]} 60. Rxg2 {[%clk 00:01:13]} {[%emt 00:00:06]} Kxc5 {[%clk
00:38:17]} {[%emt 00:00:12]} 61. Rg6 {[%clk 00:01:33]} {[%emt 00:00:09]} Kd5
{[%clk 00:38:42]} {[%emt 00:00:05]} 62. Kg4 {[%clk 00:01:19]} {[%emt 00:00:43]}
Rb1 {[%clk 00:38:49]} {[%emt 00:00:23]} 63. f5 {[%clk 00:01:34]} {[%emt
00:00:16]} Rg1+ {[%clk 00:39:11]} {[%emt 00:00:08]} 64. Kf4 {[%clk 00:01:57]}
{[%emt 00:00:07]} Rb1 {[%clk 00:39:34]} {[%emt 00:00:08]} 65. Re6 {[%clk
00:02:12]} {[%emt 00:00:14]} Rg1 {[%clk 00:39:52]} {[%emt 00:00:12]} 66. b7
{[%clk 00:02:13]} {[%emt 00:00:29]} Rb1 {[%clk 00:40:18]} {[%emt 00:00:04]} 67.
Re7 {[%clk 00:02:39]} {[%emt 00:00:04]} Rf1+ {[%clk 00:40:41]} {[%emt
00:00:07]} 68. Kg5 {[%clk 00:03:02]} {[%emt 00:00:07]} Rg1 {[%clk 00:41:07]}
{[%emt 00:00:04]} 69. Kh6 {[%clk 00:03:21]} {[%emt 00:00:11]} 1-0

[Event "I.A Hrvatska šahovska liga"]
[Site "Veli Lošinj, Croatia"]
[Date "2024.10.05"]
[Round "1.30"]
[White "Saric, Ante"]
[Black "Biliskov, Vjekoslav"]
[Result "1-0"]
[TimeControl "90 30 40 30"]
[WhiteFideId "14506254"]
[BlackFideId "14502720"]
[WhiteElo "2495"]
[BlackElo "2252"]

1. Nf3 {[%clk 01:30:57]} {[%emt 00:00:03]} Nf6 {[%clk 01:29:51]} {[%emt
00:01:10]} 2. c4 {[%clk 01:31:20]} {[%emt 00:00:07]} e6 {[%clk 01:29:59]}
{[%emt 00:00:22]} 3. Nc3 {[%clk 01:31:44]} {[%emt 00:00:06]} d5 {[%clk
01:27:37]} {[%emt 00:02:52]} 4. d4 {[%clk 01:30:37]} {[%emt 00:01:37]} Nbd7
{[%clk 01:27:42]} {[%emt 00:00:24]} 5. Bg5 {[%clk 01:27:42]} {[%emt 00:03:26]}
c6 {[%clk 01:26:10]} {[%emt 00:02:01]} 6. Qb3 {[%clk 01:24:23]} {[%emt
00:03:49]} Be7 {[%clk 01:24:22]} {[%emt 00:02:18]} 7. e3 {[%clk 01:24:44]}
{[%emt 00:00:09]} O-O {[%clk 01:22:23]} {[%emt 00:02:30]} 8. Be2 {[%clk
01:22:08]} {[%emt 00:03:07]} Nb6 {[%clk 01:16:58]} {[%emt 00:05:53]} 9. O-O
{[%clk 01:16:29]} {[%emt 00:06:09]} Nxc4 {[%clk 01:10:45]} {[%emt 00:06:43]} 10.
Bxc4 {[%clk 01:15:37]} {[%emt 00:01:22]} dxc4 {[%clk 01:11:09]} {[%emt
00:00:07]} 11. Qxc4 {[%clk 01:16:02]} {[%emt 00:00:04]} Nd5 {[%clk 01:10:44]}
{[%emt 00:00:54]} 12. Bxe7 {[%clk 01:15:42]} {[%emt 00:00:52]} Nxe7 {[%clk
01:11:05]} {[%emt 00:00:09]} 13. b4 {[%clk 01:09:44]} {[%emt 00:06:28]} b6
{[%clk 01:09:54]} {[%emt 00:01:40]} 14. a4 {[%clk 01:06:40]} {[%emt 00:03:35]}
a5 {[%clk 01:01:50]} {[%emt 00:08:34]} 15. Rfb1 {[%clk 01:04:01]} {[%emt
00:03:08]} Ba6 {[%clk 00:57:45]} {[%emt 00:04:30]} 16. Qb3 {[%clk 01:02:43]}
{[%emt 00:01:53]} Rb8 {[%clk 00:50:03]} {[%emt 00:08:08]} 17. bxa5 {[%clk
00:52:22]} {[%emt 00:10:55]} bxa5 {[%clk 00:50:19]} {[%emt 00:00:14]} 18. Qa3
{[%clk 00:52:37]} {[%emt 00:00:16]} Nd5 {[%clk 00:45:20]} {[%emt 00:05:28]} 19.
Ne4 {[%clk 00:50:41]} {[%emt 00:02:26]} Nb4 {[%clk 00:42:49]} {[%emt 00:03:02]}
20. Rc1 {[%clk 00:47:06]} {[%emt 00:04:04]} Bd3 {[%clk 00:34:50]} {[%emt
00:08:28]} 21. Nc5 {[%clk 00:46:10]} {[%emt 00:01:28]} Bg6 {[%clk 00:31:58]}
{[%emt 00:03:22]} 22. Ne5 {[%clk 00:41:53]} {[%emt 00:04:47]} Re8 {[%clk
00:29:10]} {[%emt 00:03:16]} 23. Qc3 {[%clk 00:34:45]} {[%emt 00:07:38]} f6
{[%clk 00:25:27]} {[%emt 00:04:15]} 24. Nc4 {[%clk 00:29:53]} {[%emt 00:05:21]}
Qc7 {[%clk 00:21:08]} {[%emt 00:04:47]} 25. e4 {[%clk 00:27:54]} {[%emt
00:02:32]} e5 {[%clk 00:19:33]} {[%emt 00:02:04]} 26. dxe5 {[%clk 00:27:05]}
{[%emt 00:01:19]} fxe5 {[%clk 00:19:58]} {[%emt 00:00:05]} 27. Rd1 {[%clk
00:26:32]} {[%emt 00:01:03]} Rbd8 {[%clk 00:15:07]} {[%emt 00:05:21]} 28. Rxd8
{[%clk 00:24:46]} {[%emt 00:02:17]} Qxd8 {[%clk 00:15:06]} {[%emt 00:00:30]} 29.
Nxe5 {[%clk 00:24:32]} {[%emt 00:00:44]} Bxe4 {[%clk 00:13:27]} {[%emt
00:02:09]} 30. Nxe4 {[%clk 00:23:13]} {[%emt 00:01:49]} Qd5 {[%clk 00:13:37]}
{[%emt 00:00:18]} 31. Nf6+ {[%clk 00:21:51]} {[%emt 00:01:55]} gxf6 {[%clk
00:14:02]} {[%emt 00:00:05]} 32. Ng4 {[%clk 00:22:16]} {[%emt 00:00:04]} Na2
{[%clk 00:11:27]} {[%emt 00:03:05]} 33. Nxf6+ {[%clk 00:22:37]} {[%emt
00:00:09]} 1-0